fUSD/lending_fUSD_20251211
["ID","MTS","AMOUNT","RATE_DAILY","PERIOD"]
[398270994,1765487453478,-500.0,0.00039972,30]
[398270995,1765487453488,-500.0,0.00039972,30]
[398270996,1765487453499,-500.0,0.00039972,30]
[398270997,1765487453508,-500.0,0.00039972,30]
[398270998,1765487453518,-599.7453991,0.00039972,30]
[398270999,1765487453528,-500.0,0.00039972,30]
[398271000,1765487453538,-500.0,0.00039972,30]
[398271001,1765487453552,-500.0,0.00039972,30]
[398271002,1765487453563,-500.0,0.00039972,30]
[398271003,1765487453572,-500.0,0.00039972,30]
[398271004,1765487453582,-500.0,0.00039972,30]
[398271005,1765487453592,-500.0,0.00039972,30]
[398271006,1765487453601,-500.0,0.00039972,30]
[398271007,1765487453611,-500.0,0.00039972,30]
[398271008,1765487453620,-500.0,0.00039972,30]
[398271009,1765487453630,-500.0,0.00039972,30]
[398271010,1765487453641,-500.0,0.00039972,30]
[398271011,1765487453650,-500.0,0.00039972,30]
[398271012,1765487453660,-500.0,0.00039972,30]
[398271013,1765487453669,-500.0,0.00039972,30]
[398271014,1765487453679,-500.0,0.00039972,30]
[398271015,1765487453689,-500.0,0.00039972,30]
[398271016,1765487453698,-500.0,0.00039972,30]
[398271017,1765487453708,-500.0,0.00039972,30]
[398271018,1765487453718,-500.0,0.00039972,30]
[398271019,1765487453728,-500.0,0.00039972,30]
[398271020,1765487453738,-500.0,0.00039972,30]
[398271021,1765487453908,-500.0,0.00039972,30]
[398271022,1765487453918,-500.0,0.00039972,30]
[398271023,1765487453927,-500.0,0.00039972,30]
[398271024,1765487453938,-500.0,0.00039972,30]
[398271025,1765487453948,-500.0,0.00039972,30]
[398271026,1765487453958,-500.0,0.00039972,30]
[398271027,1765487453968,-500.0,0.00039972,30]
[398271028,1765487453978,-500.0,0.00039972,30]
[398271029,1765487453987,-500.0,0.00039972,30]
[398271030,1765487453996,-500.0,0.00039972,30]
[398271031,1765487454006,-500.0,0.00039972,30]
[398271032,1765487454016,-500.0,0.00039972,30]
[398271033,1765487454025,-500.0,0.00039972,30]
[398271034,1765487454035,-500.0,0.00039972,30]
[398271035,1765487454045,-500.0,0.00039972,30]
[398271036,1765487454055,-500.0,0.00039972,30]
[398271037,1765487454065,-500.0,0.00039972,30]
[398271038,1765487454074,-500.0,0.00039972,30]
[398271039,1765487454084,-500.0,0.00039972,30]
[398271040,1765487454094,-277.79,0.00039972,30]
[398271041,1765487454103,-500.0,0.00039972,30]
[398271042,1765487454114,-500.0,0.00039972,30]
[398271043,1765487454123,-500.0,0.00039972,30]
[398271044,1765487454133,-198.20273865,0.00039972,30]
[398271045,1765487454143,-500.0,0.00039972,30]
[398271046,1765487454153,-500.0,0.00039972,30]
[398271047,1765487454163,-500.0,0.00039972,30]
[398271048,1765487454172,-500.0,0.00039972,30]
[398271049,1765487454182,-500.0,0.00039972,30]
[398271050,1765487454192,-500.0,0.00039972,30]
[398271051,1765487454202,-500.0,0.00039972,7]
[398271052,1765487454214,-500.0,0.00039972,7]
[398271053,1765487454227,-500.0,0.00039972,7]
[398271054,1765487454236,-500.0,0.00039972,7]
[398271055,1765487454246,-509.43295763,0.00039972,7]
[398271056,1765487454256,-500.0,0.00039972,30]
[398271057,1765487454266,-183.58252775,0.00039972,30]
[398271058,1765487454276,-500.0,0.00039972,30]
[398271059,1765487454286,-500.0,0.00039972,30]
[398271060,1765487454295,-500.0,0.00039972,30]
[398271061,1765487454305,-500.0,0.00039972,30]
[398271062,1765487454315,-500.0,0.00039972,30]
[398271063,1765487454324,-500.0,0.00039972,30]
[398271064,1765487454334,-500.0,0.00039972,30]
[398271065,1765487454343,-500.0,0.00039972,30]
[398271066,1765487454353,-399.28,0.00039972,30]
[398271067,1765487454362,-500.0,0.00039972,30]
[398271068,1765487454372,-500.0,0.00039972,30]
[398271069,1765487454381,-500.0,0.00039972,30]
[398271070,1765487454391,-500.0,0.00039972,30]
[398271071,1765487454400,-500.0,0.00039972,30]
[398271072,1765487454410,-500.0,0.00039972,30]
[398271073,1765487454420,-305.56812174,0.00039972,30]
[398271074,1765487454430,-292.05394615,0.00039972,30]
[398271075,1765487454442,-500.0,0.00039972,30]
[398271076,1765487454451,-500.0,0.00039972,30]
[398271077,1765487454464,-500.0,0.00039972,30]
[398271078,1765487454473,-500.0,0.00039972,30]
[398271079,1765487454483,-500.0,0.00039972,30]
[398271080,1765487454493,-500.0,0.00039972,30]
[398271081,1765487454503,-462.3081981,0.00039972,30]
[398271082,1765487454513,-313.30343449,0.00039972,30]
[398271083,1765487454523,-500.0,0.00039972,30]
[398271084,1765487454533,-500.0,0.00039972,30]
[398271085,1765487454545,-500.0,0.00039972,30]
[398271086,1765487454555,-500.0,0.00039972,30]
[398271087,1765487454565,-500.0,0.00039972,30]
[398271088,1765487454575,-500.0,0.00039972,30]
[398271089,1765487454585,-198.9,0.00039972,30]
[398271090,1765487454595,-500.0,0.00039972,30]
[398271091,1765487454604,-500.0,0.00039972,30]
[398271092,1765487454614,-500.0,0.00039972,30]
[398271093,1765487454624,-500.0,0.00039972,30]
[398271094,1765487454633,-500.0,0.00039972,30]
[398271095,1765487454644,-500.0,0.00039972,30]
[398271096,1765487454653,-500.0,0.00039972,30]
[398271097,1765487454663,-548.85593798,0.00039972,30]
[398271098,1765487454672,-500.0,0.00039972,30]
[398271099,1765487454681,-500.0,0.00039972,30]
[398271100,1765487454691,-500.0,0.00039972,30]
[398271101,1765487454700,-500.0,0.00039972,30]
[398271102,1765487454711,-500.0,0.00039972,30]
[398271103,1765487454721,-500.0,0.00039972,30]
[398271104,1765487454731,-500.0,0.00039972,30]
[398271105,1765487454740,-508.21442183,0.00039972,30]
[398271106,1765487454749,-500.0,0.00039972,30]
[398271107,1765487454759,-500.0,0.00039972,30]
[398271108,1765487454769,-500.0,0.00039972,30]
[398271109,1765487454778,-500.0,0.00039972,30]
[398271110,1765487454787,-500.0,0.00039972,30]
[398271111,1765487454796,-500.0,0.00039972,30]
[398271112,1765487454806,-500.0,0.00039972,30]
[398271113,1765487454816,-500.0,0.00039972,30]
[398271114,1765487454825,-500.0,0.00039972,30]
[398271115,1765487454835,-500.0,0.00039972,30]
[398271116,1765487454845,-500.0,0.00039972,30]
[398271117,1765487454855,-500.0,0.00039972,30]
[398271118,1765487454864,-500.0,0.00039972,30]
[398271119,1765487454874,-500.0,0.00039972,30]
[398271120,1765487454884,-500.0,0.00039972,30]
[398271121,1765487454894,-500.0,0.00039972,30]
[398271122,1765487454904,-500.0,0.00039972,30]
[398271123,1765487454914,-500.0,0.00039972,30]
[398271124,1765487454924,-550.76769526,0.00039972,30]
[398271125,1765487454933,-500.0,0.00039972,30]
[398271126,1765487454942,-500.0,0.00039972,30]
[398271127,1765487454952,-500.0,0.00039972,30]
[398271128,1765487454961,-500.0,0.00039972,30]
[398271129,1765487454971,-500.0,0.00039972,30]
[398271130,1765487454981,-500.0,0.00039972,30]
[398271131,1765487454991,-500.0,0.00039972,30]
[398271132,1765487455002,-500.0,0.00039972,30]
[398271133,1765487455011,-500.0,0.00039972,30]
[398271134,1765487455022,-500.0,0.00039972,30]
[398271135,1765487455031,-500.0,0.00039972,30]
[398271136,1765487455041,-500.0,0.00039972,30]
[398271137,1765487455050,-500.0,0.00039972,30]
[398271138,1765487455060,-500.0,0.00039972,30]
[398271139,1765487455069,-500.0,0.00039972,30]
[398271140,1765487455078,-500.0,0.00039972,30]
[398271141,1765487455088,-500.0,0.00039972,30]
[398271142,1765487455098,-500.0,0.00039972,30]
[398271143,1765487455108,-500.0,0.00039972,30]
[398271144,1765487455118,-500.0,0.00039972,30]
[398271145,1765487455127,-500.0,0.00039972,30]
[398271146,1765487455136,-500.0,0.00039972,30]
[398271147,1765487455146,-500.0,0.00039972,30]
[398271148,1765487455156,-209.15349784,0.00039972,30]
[398271149,1765487455166,-507.78990297,0.00039972,30]
[398271150,1765487455175,-500.0,0.00039972,30]
[398271151,1765487455184,-500.0,0.00039972,30]
[398271152,1765487455194,-500.0,0.00039972,30]
[398271153,1765487455203,-500.0,0.00039972,30]
[398271154,1765487455213,-500.0,0.00039972,30]
[398271155,1765487455222,-500.0,0.00039972,30]
[398271156,1765487455231,-185.55316109,0.00039972,30]
[398271157,1765487455241,-500.0,0.00039972,30]
[398271158,1765487455250,-313.20706716,0.00039972,30]
[398271159,1765487455259,-500.0,0.00039972,30]
[398271160,1765487455269,-500.0,0.00039972,30]
[398271161,1765487455279,-500.0,0.00039972,30]
[398271162,1765487455288,-500.0,0.00039972,30]
[398271163,1765487455297,-500.0,0.00039972,30]
[398271164,1765487455307,-500.0,0.00039972,30]
[398271165,1765487455317,-300.0,0.00039972,2]
[398271166,1765487455326,-300.0,0.00039972,2]
[398271167,1765487455335,-300.0,0.00039972,2]
[398271168,1765487455345,-300.0,0.00039972,2]
[398271169,1765487455354,-300.0,0.00039972,2]
[398271170,1765487455363,-151.0,0.00039972,2]
[398271171,1765487455372,-151.0,0.00039972,2]
[398271172,1765487455381,-151.0,0.00039972,2]
[398271173,1765487455391,-151.0,0.00039972,2]
[398271174,1765487455400,-151.0,0.00039972,30]
[398271175,1765487455409,-151.0,0.00039972,30]
[398271176,1765487455419,-151.0,0.00039972,30]
[398271177,1765487455428,-151.0,0.00039972,30]
[398271178,1765487455438,-151.0,0.00039972,120]
[398271179,1765487455447,-151.0,0.00039972,120]
[398271180,1765487455458,-151.0,0.00039972,120]
[398271181,1765487455471,-300.0,0.00039972,2]
[398271182,1765487455480,-300.0,0.00039972,2]
[398271183,1765487455489,-300.0,0.00039972,2]
[398271184,1765487455498,-300.0,0.00039972,2]
[398271185,1765487455508,-300.0,0.00039972,2]
[398271186,1765487455517,-216.966414,0.00039972,120]
[398271187,1765487455527,-216.966414,0.00039972,120]
[398271188,1765487455537,-216.966414,0.00039972,120]
[398271189,1765487455548,-216.966407,0.00039972,120]
[398271190,1765487455557,-5711.966436,0.00039972,120]
[398271191,1765487455567,-5711.966436,0.00039972,120]
[398271192,1765487455576,-5711.966436,0.00039972,120]
[398271193,1765487455586,-5711.96644184,0.00039972,120]
[398271194,1765487455595,-1741.72,0.00039972,2]
[398271195,1765487455605,-1741.72,0.00039972,2]
[398271196,1765487455615,-1741.72,0.00039972,2]
[398271197,1765487455624,-1741.72,0.00039972,2]
[398271198,1765487455633,-1741.72,0.00039972,2]
[398271199,1765487455643,-151.0,0.00039972,120]
[398271200,1765487455653,-396.079309,0.00039972,120]
[398271201,1765487455662,-396.079309,0.00039972,120]
[398271202,1765487455672,-396.079309,0.00039972,120]
[398271203,1765487455681,-396.079301,0.00039972,120]
[398271204,1765487455691,-151.0,0.00039972,56]
[398271205,1765487455702,-254.339611,0.00039972,120]
[398271206,1765487455711,-151.0,0.00039972,56]
[398271207,1765487455720,-178.031252,0.00039972,56]
[398271208,1765487455730,-151.0,0.00039972,120]
[398271209,1765487455739,-151.0,0.00039972,120]
[398271210,1765487455749,-151.0,0.00039972,120]
[398271211,1765487455758,-711.04806044,0.0003999,7]
[398271212,1765487455768,-300.0,0.00039998,10]
[398271213,1765487455777,-560.48,0.00039998,30]
[398271214,1765487455786,-140.73799934,0.00039998,30]
[398271215,1765487455883,-349.0,0.00039998,30]
[398271216,1765487455895,-10.26200066,0.00039998,30]
[398271217,1765487455905,-486.93639934,0.00039998,30]
[398271218,1765487455916,-13.06360066,0.00039998,30]
[398271219,1765487455926,-500.0,0.00039998,30]
[398271220,1765487455935,-500.0,0.00039998,30]
[398271221,1765487455945,-142.2061762,0.00039998,30]
[398271222,1765487455956,-357.7938238,0.00039998,30]
[398271223,1765487455966,-65.56117615,0.00039998,2]
[398271224,1765487455977,-234.43882385,0.00039998,2]
[398271225,1765487455987,-151.01098773,0.00039998,20]
[398271226,1765487455996,-300.96116639,0.00039998,2]
[398271227,1765487456006,-175.84253304,0.00039998,2]
[398271228,1765487456018,-1565.87746696,0.00039998,2]
[398271229,1765487456028,-500.0,0.00039999,30]
[398271230,1765487456038,-569.38,0.00039999,30]
[398271231,1765487456049,-253.662121,0.00039999,30]
[398271232,1765487456060,-269.79030303,0.00039999,30]
[398271233,1765487456072,-45.92757597,0.00039999,30]
[398271234,1765487456081,-569.38,0.00039999,30]
[398271235,1765487456090,-569.38,0.00039999,30]
[398271236,1765487456100,-569.38,0.00039999,30]
[398271237,1765487456110,-569.38,0.00039999,30]
[398271238,1765487456119,-569.38,0.00039999,30]
[398271239,1765487456129,-5848.46,0.00039999,30]
[398271240,1765487456139,-5848.46,0.00039999,30]
[398271241,1765487456148,-928.54892505,0.00039999,30]
[398271242,1765487456164,-828.4435801,0.00039999,30]
[398271243,1765487456176,-280.87,0.00039999,30]
[398271244,1765487456187,-483.25071622,0.00039999,30]
[398271284,1765488420839,-1124.32370165,0.000162,5]
[398271285,1765488422512,-166.66,0.000162,5]
[398271291,1765488520270,1232.967164,0.00015,2]
[398271314,1765488632052,-625.0184482,0.000162,5]
[398271316,1765488632110,-287.59,0.000162,5]
[398271317,1765488632124,-259.39015822,0.000162,5]
[398271318,1765488632173,-2537.01823903,0.000162,5]
[398271319,1765488632183,-356.2584437,0.00016899,2]
[398271320,1765488632194,-300.0,0.00016998,2]
[398271321,1765488632221,-593.0,0.00016998,2]
[398271322,1765488632233,-300.0,0.00016998,2]
[398271323,1765488632244,-1200.0,0.00016999,2]
[398271324,1765488632254,-500.0,0.00016999,2]
[398271325,1765488632265,-500.0,0.00016999,2]
[398271326,1765488632275,-500.0,0.00016999,2]
[398271327,1765488632286,-500.0,0.00016999,2]
[398271328,1765488632296,-500.0,0.00016999,2]
[398271329,1765488632307,-500.0,0.00016999,2]
[398271330,1765488632317,-500.0,0.00016999,2]
[398271331,1765488632327,-500.0,0.00016999,2]
[398271332,1765488632337,-500.0,0.00016999,2]
[398271333,1765488632348,-500.0,0.00016999,2]
[398271334,1765488632358,-500.0,0.00016999,2]
[398271335,1765488632369,-500.0,0.00016999,2]
[398271336,1765488632379,-500.0,0.00016999,2]
[398271337,1765488632389,-500.0,0.00016999,2]
[398271338,1765488632399,-426.54698254,0.00016999,2]
[398271339,1765488632410,-500.0,0.00016999,2]
[398271340,1765488632420,-500.0,0.00016999,2]
[398271341,1765488632429,-500.0,0.00016999,2]
[398271342,1765488632439,-500.0,0.00016999,2]
[398271343,1765488632449,-500.0,0.00016999,2]
[398271344,1765488632459,-500.0,0.00016999,2]
[398271345,1765488632469,-500.0,0.00016999,2]
[398271346,1765488632479,-500.0,0.00016999,2]
[398271347,1765488632489,-500.0,0.00016999,2]
[398271348,1765488632498,-500.0,0.00016999,2]
[398271350,1765488632508,-500.0,0.00016999,2]
[398271352,1765488632518,-500.0,0.00016999,2]
[398271353,1765488632529,-500.0,0.00016999,2]
[398271354,1765488632539,-240.77746788,0.00016999,2]
[398271355,1765488632549,-500.0,0.00016999,2]
[398271356,1765488632564,-210.6688695,0.00016999,2]
[398271357,1765488632574,-500.0,0.00016999,2]
[398271358,1765488632585,-500.0,0.00016999,2]
[398271359,1765488632595,-500.0,0.00016999,2]
[398271360,1765488632605,-500.0,0.00016999,2]
[398271361,1765488632616,-500.0,0.00016999,2]
[398271362,1765488632626,-500.0,0.00016999,2]
[398271363,1765488632636,-500.0,0.00016999,2]
[398271364,1765488632646,-500.0,0.00016999,2]
[398271365,1765488632657,-500.0,0.00016999,2]
[398271366,1765488632667,-500.0,0.00016999,2]
[398271367,1765488632677,-500.0,0.00016999,2]
[398271368,1765488632687,-500.0,0.00016999,2]
[398271369,1765488632697,-500.0,0.00016999,2]
[398271370,1765488632707,-500.0,0.00016999,2]
[398271371,1765488632717,-288.92284287,0.00016999,2]
[398271372,1765488632727,-500.0,0.00016999,2]
[398271373,1765488632737,-500.0,0.00016999,2]
[398271374,1765488632747,-500.0,0.00016999,2]
[398271375,1765488632757,-500.0,0.00016999,2]
[398271376,1765488632767,-500.0,0.00016999,2]
[398271377,1765488632776,-500.0,0.00016999,2]
[398271378,1765488632786,-500.0,0.00016999,2]
[398271379,1765488632796,-500.0,0.00016999,2]
[398271380,1765488632806,-500.0,0.00016999,2]
[398271381,1765488632816,-500.0,0.00016999,2]
[398271382,1765488632826,-500.0,0.00016999,2]
[398271383,1765488632836,-500.0,0.00016999,2]
[398271384,1765488632847,-500.0,0.00016999,2]
[398271385,1765488632857,-500.0,0.00016999,2]
[398271386,1765488632870,-500.0,0.00016999,2]
[398271387,1765488632880,-17.33892971,0.00016999,2]
[398271388,1765488632895,-482.66107029,0.00016999,2]
[398271389,1765488632906,-500.0,0.00016999,2]
[398271390,1765488632920,-500.0,0.00016999,2]
[398271391,1765488632929,-500.0,0.00016999,2]
[398271392,1765488632940,-500.0,0.00016999,2]
[398271393,1765488632950,-500.0,0.00016999,2]
[398271394,1765488632961,-500.0,0.00016999,2]
[398271395,1765488632971,-500.0,0.00016999,2]
[398271396,1765488632982,-500.0,0.00016999,2]
[398271397,1765488632992,-500.0,0.00016999,2]
[398271398,1765488633002,-500.0,0.00016999,2]
[398271399,1765488633012,-500.0,0.00016999,2]
[398271400,1765488633023,-500.0,0.00016999,2]
[398271401,1765488633033,-500.0,0.00016999,2]
[398271402,1765488633043,-500.0,0.00016999,2]
[398271403,1765488633053,-500.0,0.00016999,2]
[398271404,1765488633064,-500.0,0.00016999,2]
[398271405,1765488633074,-500.0,0.00016999,2]
[398271406,1765488633086,-500.0,0.00016999,2]
[398271407,1765488633095,-500.0,0.00016999,2]
[398271408,1765488633109,-500.0,0.00016999,2]
[398271409,1765488633121,-500.0,0.00016999,2]
[398271410,1765488633131,-500.0,0.00016999,2]
[398271411,1765488633141,-500.0,0.00016999,2]
[398271412,1765488633152,-500.0,0.00016999,2]
[398271413,1765488633162,-1427.90494,0.00017,2]
[398271414,1765488633248,-272.85974892,0.00017,2]
[398271415,1765488633260,-48224.08351932,0.00017,2]
[398271416,1765488633271,-250.0,0.00017072,2]
[398271417,1765488633282,-356.2584437,0.00017118,2]
[398271418,1765488633293,-2859.08890889,0.00017122,2]
[398271419,1765488633309,-2368.48459111,0.00017122,2]
[398271420,1765488633320,-594.99,0.00017221,2]
[398271421,1765488633330,-594.99,0.00017495,2]
[398271422,1765488633341,-594.99,0.00017769,2]
[398271423,1765488633352,-15018.46420505,0.00018,2]
[398271424,1765488633366,-574.9815518,0.00018,2]
[398271425,1765488633404,-310.85688232,0.00018,2]
[398271440,1765488638187,-381.77837085,0.00017121,2]
[398271441,1765488638198,-11627.57070966,0.00018,2]
[398271442,1765488638242,-3987.72694341,0.00018,2]
[398271443,1765488638305,-1064.40417485,0.00018,2]
[398271444,1765488638318,-11639.99234095,0.00018,2]
[398271445,1765488638363,-10169.3334292,0.00018,2]
[398271446,1765488638377,-1193.8,0.00018,2]
[398271447,1765488638390,-22907.5315,0.00018,2]
[398271448,1765488638402,-1295.24488642,0.00018,2]
[398271449,1765488638414,-398.20953802,0.00018,2]
[398271488,1765488640244,-7938.34899041,0.00018,2]
[398271489,1765488640256,-270.00005,0.00018,2]
[398271490,1765488640268,-2157.92961323,0.00018,2]
[398271491,1765488640280,-336.3733244,0.00018,2]
[398271492,1765488640301,-3730.46264169,0.00018,2]
[398271493,1765488640313,-418.54789703,0.00018,2]
[398271494,1765488640368,-13332.41160009,0.00018,2]
[398271495,1765488640440,-518.41009963,0.00018,2]
[398271496,1765488640452,-33514.33954633,0.00018,2]
[398271497,1765488640500,-606.1801905,0.00018,2]
[398271498,1765488640512,-294.8232199,0.00018,2]
[398271499,1765488640559,-1232.66097081,0.00018,2]
[398271500,1765488640730,-4227.19490143,0.00018,2]
[398271501,1765488640742,-20310.72427912,0.00018,2]
[398271502,1765488640753,-13473.14504517,0.00018,2]
[398271503,1765488640765,-1711.20790717,0.00018,2]
[398271504,1765488640793,-3864.10583401,0.00018,2]
[398271513,1765488640979,-601.50114901,0.00018,2]
[398271517,1765488643936,-1294.93495063,0.00018,2]
[398271518,1765488643998,-758523.22460816,0.00018,2]
[398271519,1765488644009,-594.99,0.00018043,2]
[398271520,1765488644019,-594.99,0.00018317,2]
[398271521,1765488644029,-1644.7621712,0.00018424,2]
[398271522,1765488644039,-171.77149165,0.00018424,2]
[398271523,1765488644049,-9422.40399515,0.00018524,2]
[398271524,1765488644060,-420.0,0.00018566,2]
[398271525,1765488644069,-250.0,0.00018724,2]
[398271526,1765488644079,-225.96487857,0.00018724,2]
[398271527,1765488644089,-480.8162296,0.00019826,2]
[398271528,1765488644099,-587.0,0.00020278,2]
[398271529,1765488644108,-1644.76217113,0.00020921,2]
[398271530,1765488644118,-9422.4039951,0.0002101,2]
[398271531,1765488644128,-313.0,0.00022148,2]
[398271532,1765488644138,-164.51865056,0.00022877,2]
[398271533,1765488644148,-150.0,0.00022877,2]
[398271534,1765488644158,-150.0,0.00023014,2]
[398271535,1765488644168,-171.77149163,0.00023081,2]
[398271536,1765488644178,-200.0,0.00023151,2]
[398271537,1765488644188,-1644.76217113,0.00023419,2]
[398271538,1765488644197,-1000.0,0.0002349,2]
[398271539,1765488644207,-9422.4039951,0.00023496,2]
[398271540,1765488644218,-891.26111352,0.00023551,2]
[398271541,1765488644228,-4504.771,0.00023899,2]
[398271542,1765488644238,-461.12,0.00024174,2]
[398271543,1765488644248,-237.01602015,0.0002489,2]
[398271544,1765488644258,-145257.139767,0.000249,2]
[398271545,1765488644267,-1644.76217113,0.00025916,2]
[398271546,1765488644277,-9422.4039951,0.00025983,2]
[398271547,1765488644287,-171.77149163,0.00027738,2]
[398271548,1765488644297,-1644.76217113,0.00028413,2]
[398271549,1765488644307,-9422.4039951,0.00028469,2]
[398271550,1765488644318,-259.6171671,0.0003,30]
[398271551,1765488644327,-715.91,0.000304,30]
[398271552,1765488644337,-1644.76217113,0.00030911,2]
[398271553,1765488644347,-9422.4039951,0.00030955,2]
[398271554,1765488644358,-200.0,0.00031822,2]
[398271555,1765488644367,-171.77149163,0.00032394,2]
[398271556,1765488644377,-18689.65,0.00032402,2]
[398271557,1765488644388,-160.0,0.00033,14]
[398271558,1765488644398,-1644.76217113,0.00033408,2]
[398271559,1765488644408,-9422.4039951,0.00033441,2]
[398271560,1765488644418,-2751.0,0.00033838,120]
[398271561,1765488644427,-267.07086315,0.00034,4]
[398271562,1765488644437,-1155.955,0.00034283,38]
[398271563,1765488644447,-4952.14,0.00034429,2]
[398271564,1765488644459,-1058.0804921,0.00035916,2]
[398271565,1765488644469,-9422.4039951,0.00035928,2]
[398271566,1765488644478,-150.0,0.0003617,2]
[398271567,1765488644487,-204.61773937,0.0003617,13]
[398271568,1765488644497,-500.0,0.0003617,13]
[398271569,1765488644506,-500.0,0.0003617,13]
[398271570,1765488644516,-500.0,0.0003617,13]
[398271571,1765488644526,-500.0,0.0003617,13]
[398271572,1765488644536,-500.0,0.0003617,13]
[398271573,1765488644546,-500.0,0.0003617,13]
[398271574,1765488644555,-500.0,0.0003617,13]
[398271575,1765488644565,-500.0,0.0003617,13]
[398271576,1765488644575,-500.0,0.0003617,13]
[398271577,1765488644586,-500.0,0.0003617,13]
[398271578,1765488644595,-885.52,0.0003617,5]
[398271579,1765488644605,-885.02,0.0003617,5]
[398271580,1765488644614,-1142.74708215,0.0003617,5]
[398271581,1765488644625,-295.5899606,0.00036296,7]
[398271582,1765488644634,-150.0,0.00036296,7]
[398271583,1765488644644,-211.45507288,0.00036296,7]
[398271584,1765488644654,-150.0,0.00036296,7]
[398271585,1765488644664,-176.61851229,0.00036296,7]
[398271586,1765488644674,-150.0,0.00036296,7]
[398271587,1765488644683,-186.81901619,0.00036296,7]
[398271588,1765488644693,-150.0,0.00036296,7]
[398271589,1765488644702,-150.0,0.00036296,7]
[398271590,1765488644712,-715.91,0.000363,30]
[398271591,1765488644721,-228.670009,0.00036307,2]
[398271592,1765488644731,-167.98,0.00036348,2]
[398271593,1765488644741,-5000.0,0.00036626,2]
[398271594,1765488644751,-345.34,0.00036699,30]
[398271595,1765488644760,-325.58015431,0.000367,30]
[398271596,1765488644770,-2000.0,0.00037,20]
[398271597,1765488644779,-2000.0,0.00037,20]
[398271598,1765488644789,-2000.0,0.00037,20]
[398271599,1765488644799,-2000.0,0.00037,20]
[398271600,1765488644808,-171.77149163,0.00037051,2]
[398271601,1765488644818,-2500.0,0.000372,2]
[398271602,1765488644828,-1000.0,0.000373,2]
[398271603,1765488644838,-1186.76,0.00037441,2]
[398271604,1765488644847,-1000.0,0.00037563,2]
[398271605,1765488644861,-393.69548636,0.0003761,2]
[398271606,1765488644872,-877.59,0.00037748,5]
[398271607,1765488644882,-882.29,0.00037772,5]
[398271608,1765488644893,-883.9,0.00037811,5]
[398271609,1765488644903,-866.29,0.00037918,5]
[398271610,1765488644913,-151.0,0.00037997,14]
[398271611,1765488644922,-2000.0,0.00038,30]
[398271612,1765488644934,-2000.0,0.00038,30]
[398271613,1765488644947,-2000.0,0.00038,30]
[398271614,1765488644958,-2000.0,0.00038,25]
[398271615,1765488644968,-2000.0,0.00038,25]
[398271616,1765488644978,-2000.0,0.00038,25]
[398271617,1765488644987,-715.91,0.00038,30]
[398271618,1765488644998,-61041.0,0.00038226,2]
[398271619,1765488645007,-150.0,0.00038312,7]
[398271620,1765488645017,-150.0,0.00038312,7]
[398271621,1765488645028,-150.0,0.00038312,7]
[398271622,1765488645038,-200.0,0.00038356,30]
[398271623,1765488645048,-500.0,0.00038373,5]
[398271624,1765488645058,-500.0,0.00038373,5]
[398271625,1765488645069,-500.0,0.00038373,5]